Cogmind - Beta 10.2 @@@ ROGUE MODE // 2021.05.06 @ 11:57:30 Player: reason Result: Self-destructed Performance ------------- Evolutions (2) 1000 Regions Visited (4) 800 Robots Destroyed (20) 100 Value Destroyed (593) 593 Prototype IDs (2) 40 Alien Tech Used (0) 0 Bonus (16) 16 TOTAL SCORE: 2549 Bonus ------- High Alert Combat Kills 16 Cogmind --------- Core Integrity 417/550 Matter 233/300 Energy 35/100 System Corruption 0% Temperature Cool (0) Movement Rolling (90) Location -8/Materials Parts ------- > --- POWER (1) -------- (None) > --- PROPULSION (4) --- Armored Wheel > --- UTILITY (4) ------ Visual Processing Unit Advanced Signal Interpreter Improved ECM Suite > --- WEAPON (2) ------- Advanced EMP Blaster > --- INVENTORY (4) ---- Improved Heat Sink Advanced Targeting Computer Hardlight Generator Peak State ------------ > --- POWER ------------ Improved Ion Engine > --- PROPULSION ------- Wheel Wheel Wheel Wheel > --- UTILITY ---------- Visual Processing Unit Improved Sensor Array Advanced Signal Interpreter Improved ECM Suite > --- WEAPON ----------- Improved Assault Rifle > --- INVENTORY -------- Improved Heat Sink Targeting Computer Advanced Targeting Computer Hardlight Generator [Rating: 20] Favorites ----------- Power Improved Ion Engine Engine Improved Ion Engine Propulsion Wheel Wheel Wheel Flight Unit Flight Unit Utility Structural Scanner Device Structural Scanner Processor Signal Interpreter Weapon Light EM Pulse Cannon Energy Gun Heavy EM Pulse Gun Energy Cannon Light EM Pulse Cannon Ballistic Gun Improved Assault Rifle Ballistic Cannon Assault Cannon Launcher Advanced EMP Blaster Build | -11 -10 -9 -9 -8 ------- Run | Scr Mat Mat Min Mat Slots Evolved 4 | . . 2 . 2 Power . | . . . . . Propulsion 2 | . . 2 . . Utility 2 | . . . . 2 Weapon . | . . . . . Parts Attached 30 | 4 2 16 1 7 Power 5 | 1 1 2 1 . Engine 5 | 1 1 2 1 . Core . | . . . . . Reactor . | . . . . . Propulsion 7 | 2 . 4 . 1 Treads . | . . . . . Leg . | . . . . . Wheel 6 | 2 . 3 . 1 Hover . | . . . . . Flight 1 | . . 1 . . Utility 9 | . 1 4 . 4 Device 6 | . 1 3 . 2 Storage . | . . . . . Processor 3 | . . 1 . 2 Hackware . | . . . . . Protection . | . . . . . Artifact . | . . . . . Weapon 9 | 1 . 6 . 2 Energy Gun 3 | 1 . 2 . . Energy Cannon 2 | . . 2 . . Ballistic Gun 1 | . . . . 1 Ballistic Cannon 2 | . . 2 . . Launcher 1 | . . . . 1 Special Weapon . | . . . . . Impact Weapon . | . . . . . Slashing Weapon . | . . . . . Piercing Weapon . | . . . . . Special Melee Weapon . | . . . . . Unidentified Prototypes 2 | . . . . 2 Parts Lost 7 | . . . . 7 Power 1 | . . . . 1 Propulsion 4 | . . . . 4 Utility 1 | . . . . 1 Weapon 1 | . . . . 1 Highest Loss Streak 7 | . . . . 7 Average Slot Usage (%) 83 | . 66 83 100 86 Engine 11 | . 14 11 11 8 Wheel 28 | . 28 23 44 31 Flight 3 | . . 6 . . Device 16 | . 9 19 11 17 Processor 5 | . . 2 11 18 Energy Gun 7 | . 14 9 . . Energy Cannon 5 | . . 10 . . Ballistic Gun 1 | . . . . 8 Ballistic Cannon 4 | . . 2 22 1 Naked Turns . | . . . . . Heaviest Build 19 | 5 8 18 18 19 Greatest Support 46 | 26 26 46 40 40 Greatest Overweight (x) 1 | . . . . 1 Average Overweight (x) . | . . . . . Largest Inventory Capacity 4 | 4 4 4 4 4 Average Capacity 4 | 4 4 4 4 4 Most Carried 4 | 4 4 4 4 4 Average Carried 3 | 3 3 3 3 3 Final Capacity 4 | 4 4 4 4 4 Final Carried 4 | 4 4 3 4 3 Class Distribution -------------------- 56% | Mutant 43% | Infiltrator-Mutant Dominant Class ---------------- Mutant | -10/Materials Infiltrator-Mutant | -9/Materials Mutant | -9/Mines Mutant | -8/Materials Resources | -11 -10 -9 -9 -8 ----------- Run | Scr Mat Mat Min Mat Matter Collected 520 | 240 20 121 139 . Remotely . | . . . . . Salvage Created 673 | . 49 411 183 30 Parts 34 | . 3 17 9 5 Haulers Intercepted . | . . . . . Recyclers Shooed . | . . . . . Parts Field Recycled . | . . . . . Retrieved Matter . | . . . . . Parts Self-Destructed . | . . . . . Prevented . | . . . . . Kills | -11 -10 -9 -9 -8 ------- Run | Scr Mat Mat Min Mat Combat Hostiles Destroyed 17 | . 3 7 5 2 Guns 8 | . 3 5 . . Cannons 7 | . . 2 5 . AOE 2 | . . . . 2 Classes Destroyed 4 | . 1 3 . . Watcher 3 | . . 3 . . Swarmer 5 | . 3 . . 2 Grunt 8 | . . 5 3 . Sentry 4 | . . 2 2 . Best Kill Streak 5 | . 3 2 5 2 Combat Bots Only 5 | . 3 2 5 2 Max Kills in Single Turn 2 | . 1 1 1 2 Gunslinging . | . . . . . Exploded 2 | . . . . 2 Melee . | . . . . . Uniques/NPCs Destroyed . | . . . . . Combat | -11 -10 -9 -9 -8 -------- Run | Scr Mat Mat Min Mat Damage Taken 972 | . 54 207 156 555 Core 263 | . 16 72 42 133 Absorbed by Shields . | . . . . . Core Remaining (%) 88 | 100 93 . 71 . Volleys Fired 54 | . 8 28 8 10 Largest 2 | . 1 2 2 1 Hottest 112 | . 40 112 88 36 Shots Fired 89 | . 8 55 16 10 Gun 53 | . 8 36 . 9 Cannon 35 | . . 19 16 . Launcher 1 | . . . . 1 Special . | . . . . . Kinetic 27 | . . 2 16 9 Thermal . | . . . . . Explosive . | . . . . . Electromagnetic 62 | . 8 53 . 1 Robot Hit Streak 6 | . 1 5 5 6 Robot Miss Streak 4 | . 3 4 3 2 Penetration Max . | . . . . . Secondary Targets . | . . . . . Shots Hit Robots 51 | . 2 32 10 7 Core Hits 23 | . 3 12 6 2 Critical Hits . | . . . . . Critical Kills . | . . . . . Critical Parts Destroyed . | . . . . . Melee Attacks . | . . . . . Impact . | . . . . . Slashing . | . . . . . Piercing . | . . . . . Sneak Attacks . | . . . . . Combat Hostiles . | . . . . . Follow-up Attacks . | . . . . . Damage Inflicted 1121 | . 38 652 271 160 Guns 524 | . 34 400 . 90 Cannons 477 | . . 206 271 . Explosions 116 | . . 46 . 70 Melee . | . . . . . Ramming 4 | . 4 . . . Kinetic 361 | . . . 271 90 Thermal 46 | . . 46 . . Explosive . | . . . . . Electromagnetic 710 | . 34 606 . 70 Impact . | . . . . . Slashing . | . . . . . Piercing . | . . . . . Highest Corruption . | . . . . . Average Corruption . | . . . . . Corruption Purged . | . . . . . Overload Shots . | . . . . . Overflow Damage 15 | . . 8 7 . Projectiles 15 | . . 8 7 . Explosions . | . . . . . Melee . | . . . . . Knockbacks 1 | . . . 1 . Impact . | . . . . . Kinetic 1 | . . . 1 . Secondary . | . . . . . Self-Inflicted Damage 16 | . 2 . . 14 Shots 1 | . . . . 1 Rammed 1 | . 1 . . . Targets Rammed 1 | . 1 . . . Kicked . | . . . . . Crushed . | . . . . . Highest Temperature 174 | . . 141 174 . Average Temperature 46 | . . 38 75 . Received Heat Transfer 243 | . 6 93 72 72 Siege Activations . | . . . . . Robots Corrupted . | . . . . . Combat Hostiles . | . . . . . Parts Fried 7 | . . 6 . 1 Impact Corruptions . | . . . . . Robots Melted . | . . . . . Combat Hostiles . | . . . . . Parts Melted . | . . . . . Heat Transferred 50 | . . 50 . . Parts Sabotaged . | . . . . . Parts Stolen . | . . . . . Parts Stripped . | . . . . . Power Chain Reactions 1 | . . 1 . . Missiles Intercepted . | . . . . . Alert | -11 -10 -9 -9 -8 ------- Run | Scr Mat Mat Min Mat Peak Influence 525 | . 70 525 276 137 Initial 151 | . . 29 151 107 Average 216 | . 27 309 211 120 Maximum Alert Level 2 | . . 2 1 . Low Security (%) 55 | 100 100 30 47 100 Level 1 30 | . . 44 52 . Level 2 13 | . . 25 . . Level 3 . | . . . . . Level 4 . | . . . . . Level 5 . | . . . . . High Security . | . . . . . Max Security . | . . . . . Squads Dispatched 5 | . 1 3 . 1 Investigation 2 | . 1 1 . . Extermination . | . . . . . Reinforcement 3 | . . 2 . 1 Assault . | . . . . . Garrison . | . . . . . Intercept . | . . . . . Construction Impeded . | . . . . . Haulers Reinforced . | . . . . . Stealth | -11 -10 -9 -9 -8 --------- Run | Scr Mat Mat Min Mat Distress Signals 3 | . . 3 . . Communications Jammed . | . . . . . Distress Signals . | . . . . . Times Spotted 52 | . 7 29 5 11 Peak Tracking Total 9 | . 4 6 4 9 Tactical Retreats 6 | . . 5 . 1 Traps | -11 -10 -9 -9 -8 ------- Run | Scr Mat Mat Min Mat Traps Triggered 1 | . 1 . . . Indirectly . | . . . . . Trap Hack Attempts . | . . . . . Triggered . | . . . . . Disarmed . | . . . . . Reprogrammed . | . . . . . Reused . | . . . . . Traps Extracted . | . . . . . Installed . | . . . . . Triggered 2 | . . 1 1 . Machines | -11 -10 -9 -9 -8 ---------- Run | Scr Mat Mat Min Mat Machines Disabled 4 | . . 4 . . Max in Single Turn 2 | . . 2 . . Machines Sabotaged . | . . . . . Garrisons Compromised . | . . . . . Overloaded Fab Kills . | . . . . . Fab Network Shutdowns . | . . . . . Hacking | -11 -10 -9 -9 -8 --------- Run | Scr Mat Mat Min Mat Machines Accessed 3 | . 2 . . 1 Terminals . | . . . . . Fabricators . | . . . . . Repair Stations 1 | . 1 . . . Recycling Units 2 | . 1 . . 1 Scanalyzers . | . . . . . Garrison Access . | . . . . . Total Hacks 3 | . 2 . . 1 Successful 2 | . 1 . . 1 Failed 1 | . 1 . . . Catastrophic . | . . . . . Database Lockouts . | . . . . . Manual 1 | . . . . 1 Terminals . | . . . . . Fabricators . | . . . . . Repair Stations 1 | . 1 . . . Recycling Units 2 | . 1 . . 1 Scanalyzers . | . . . . . Garrison Access . | . . . . . Terminal Hacks . | . . . . . Fabricator Hacks . | . . . . . Repair Station Hacks . | . . . . . Recycling Unit Hacks 2 | . 1 . . 1 Report Inventory 2 | . 1 . . 1 Scanalyzer . | . . . . . Garrison Access Hacks . | . . . . . Unauthorized Hacks . | . . . . . Terminals . | . . . . . Fabricators . | . . . . . Repair Stations . | . . . . . Recycling Units . | . . . . . Scanalyzers . | . . . . . Garrison Access . | . . . . . Data Cores Recovered . | . . . . . Used . | . . . . . Hacking Detections 2 | . 1 . . 1 Full Trace Events . | . . . . . Feedback Events . | . . . . . Feedback Blocked . | . . . . . Robot Schematics Acquired . | . . . . . Robots Built . | . . . . . Matter . | . . . . . Time . | . . . . . Total Robot Build Rating . | . . . . . Part Schematics Acquired . | . . . . . Parts Built . | . . . . . Matter . | . . . . . Time . | . . . . . Total Part Build Rating . | . . . . . Parts Repaired . | . . . . . Time . | . . . . . Parts Recycled . | . . . . . Recycled Matter . | . . . . . Retrieved Matter . | . . . . . Retrieved Components . | . . . . . Parts Scanalyzed . | . . . . . Part Schematics Acquired . | . . . . . Parts Damaged . | . . . . . Bothacking | -11 -10 -9 -9 -8 ------------ Run | Scr Mat Mat Min Mat Used RIF Installer . | . . . . . Robots Hacked . | . . . . . Non-combat . | . . . . . Combat . | . . . . . Robot Hacks Applied . | . . . . . Relay Couplers Released . | . . . . . Robots Rewired . | . . . . . Allies Hacked . | . . . . . Hacks Repelled . | . . . . . Allies | -11 -10 -9 -9 -8 -------- Run | Scr Mat Mat Min Mat Total Allies . | . . . . . Largest Group . | . . . . . Highest-Rated Group . | . . . . . Highest-Rated Ally . | . . . . . Total Orders . | . . . . . Ally Attacks . | . . . . . Total Damage . | . . . . . Kills . | . . . . . Allies Corrupted . | . . . . . Allies Melted . | . . . . . Intel | -11 -10 -9 -9 -8 ------- Run | Scr Mat Mat Min Mat Robot Analysis Total . | . . . . . Derelict Logs Recovered 2 | . . . 2 . Drone Launches . | . . . . . Drone Recoveries . | . . . . . Exploration | -11 -10 -9 -9 -8 ------------- Run | Scr Mat Mat Min Mat Turns Passed 1890 | 56 266 1001 263 304 Spaces Moved 1848 | 52 261 925 284 326 Core 6 | 6 . . . . Treads . | . . . . . Legs . | . . . . . Wheels 1842 | 46 261 925 284 326 Hover . | . . . . . Flight . | . . . . . Fastest Speed 50 | 50 90 80 80 80 Average Speed 86 | 85 90 89 80 80 Slowest Speed 90 | 90 90 90 80 90 Overloaded Moves . | . . . . . Propulsion Burnouts . | . . . . . Robots Hopped . | . . . . . Cave-ins Triggered . | . . . . . Exploration Rate (%) 30 | 3 40 40 50 21 Regions Visited 4 Branch Regions 1 Pre-discovered Areas . | . . . . . Known Exits Taken 2 | . . 1 1 . Unknown Exits Taken 2 | 1 1 . . . Scrap Searched 2 | . . . 2 . Spaces Dug . | . . . . . Terrain Destroyed 9 | . . 7 2 . Melee . | . . . . . Projectile 2 | . . . 2 . AOE 7 | . . 7 . . Terrain Rammed . | . . . . . Walls Destroyed . | . . . . . Machines Disabled . | . . . . . Actions | -11 -10 -9 -9 -8 --------- Run | Scr Mat Mat Min Mat Total 2060 | 63 285 1049 305 358 Wait 59 | . 5 44 6 4 Move 1845 | 51 261 924 283 326 Hop . | . . . . . Pick Up 44 | 8 5 20 4 7 Fast Attach . | . . . . . Attach 16 | 4 1 6 . 5 Detach . | . . . . . Swap 14 | . 1 10 1 2 Drop 28 | . 4 17 3 4 Fire 54 | . 8 28 8 10 Melee . | . . . . . Ram . | . . . . . Kick . | . . . . . Crush . | . . . . . Escape Stasis . | . . . . . Rewire . | . . . . . Trap . | . . . . . Miscellaneous . | . . . . . Route ------- -11/Scrapyard -10/Materials -9/Materials -9/Mines -8/Materials History --------- Turn | Location | Event 19 | -11/Scrapyard | Discovered new exit (range 14) 57 | -11/Scrapyard | Entered Materials 309 | -10/Materials | Discovered new exit (range 11) 314 | -10/Materials | Build established: Mutant 323 | -10/Materials | Entered another Materials area 323 | -9/Materials | Evolved 2 slots: Propulsion x2 617 | -9/Materials | Build established: Infiltrator-Mutant 844 | -9/Materials | Discovered new exit (range 9) 1282 | -9/Materials | Identified exit to Mines 1324 | -9/Materials | Entered Mines 1363 | -9/Mines | Learned Materials emergency access door positions 1428 | -9/Mines | Build established: Mutant 1540 | -9/Mines | Discovered new exit (range 7) 1545 | -9/Mines | Identified exit to Materials 1587 | -9/Mines | Entered Materials 1587 | -8/Materials | Evolved 2 slots: Utility x2 1891 | -8/Materials | Self-destructed Last Messages --------------- Terminal unresponsive. U-05 Engineer builds a Door. Wheel destroyed. Slug penetrates Wall. Penetrated by Slug. Wheel destroyed. Dropped Targeting Computer. R-06 Scavenger collects Targeting Computer. Acquired Arm. Wheel. Imp. Sensor Array destroyed. Slug penetrates Wall. Wheel destroyed. Imp. Ion Engine destroyed. Acquired Prototype Launcher. Identified Adv. EMP Blaster. Imp. Assault Rifle destroyed. Flight Unit fried. S-10 Pest destroyed. Door malfunctions. S-10 Pest destroyed. Map ----- +----------------------------------------------------+ | ?????????????????????????????????????????????????? | | ?????????????????????????????????????????????????? | | ?????????????????????????????????????????????????? | | ????#######??????????????????????????????????????? | | ##### #??????????????????????????????????????? | | #??????????????????????????????????????? | | #??????????????????????????????????????? | | #??????????????????????????????????????? | | ##### #??????????????????????????????????????? | | ????## ##??????????????????????????????????????? | | ?????# #???????????????????????????????????????? | | ?????# #???????????????????????????????????????? | | ?????# #???????????????????????????????????????? | | ?????# #???????????????????????????????????????? | | ?????# #???????????????????????????????????????? | | ????## ##??????????????????????????????????????? | | ##### #??????????????????????????????????????? | | #??????????????????????????????????????? | | #??????????????????????????????????????? | | ####################+########+?????????? | | ##### s ???????? | | ????## ########## ^ ???????? | | ?????# #????????# *% ???????? | | ?????#]]!!!!#????????####/########## ?????????? | | ?????#]]!!!!#????????# [%s #??????????????????? | | ?????########????????# *@] #??????????????????? | | ?????????????????????# ! ]] #??????????????????? | | ?????????????????????# #??????????????????? | | ?????????????????????# #??????????????????? | | ?????????????????????# """ #??????????????????? | | ?????????????????????# """ #??????????????????? | | ?????????????????????# """ #??????????????????? | | ?????????????????????# #??????????????????? | | ?????????????????????##########??????????????????? | | ?????????????????????????????????????????????????? | | ?????????????????????????????????????????????????? | | ?????????????????????????????????????????????????? | | ?????????????????????????????????????????????????? | | ?????????????????????????????????????????????????? | | ?????????????????????????????????????????????????? | | ?????????????????????????????????????????????????? | | ?????????????????????????????????????????????????? | | ?????????????????????????????????????????????????? | | ?????????????????????????????????????????????????? | | ?????????????????????????????????????????????????? | | ?????????????????????????????????????????????????? | | ?????????????????????????????????????????????????? | | ?????????????????????????????????????????????????? | | ?????????????????????????????????????????????????? | | ?????????????????????????????????????????????????? | +----------------------------------------------------+ Best States ------------- Heat Dissipation 31 Energy Generation 12 Energy Capacity 265 Matter Stores 300 Matter Capacity 300 Sight Range 18 Robot Scan Range 13 Terrain Scan Density 10 ECM Strength 1 Evasion (%) 44 Item Schematics ----------------- None Robot Schematics ------------------ None Fabricated ------------ Nothing Alien Tech Used ----------------- None Achievements -------------- I Spy Challenges ------------ None Game ------ Seed HypervelocityEtherialKit Manual? 0 Play Time 00:42:40 Cumulative 6.4 hours Start 2021.05.06 @ 11:08:24 End 2021.05.06 @ 11:57:30 Sessions 1 Manual Loads 0 Difficulty Rogue Special Mode None Game No. 12 Rogue 12 Adventurer 0 Explorer 0 Win Type - Total 0 Types 0/0/0/0/0/0/0/0/0 Lore% 4 Gallery% 13 Achievement% 10 Wizard Run 0 Options --------- ASCII 0 Keyboard 0 Movement Numpad Keybinds 0 Fullscreen 1 Font 18/SmallcapsGlow Map View 76x50 Tactical HUD 0 Map Filters NONE Filters NONE Steam 1 RUN: 257fca30-b0f0-49d8-adf6-aafffbb6d1d1